[Event "*** SCC Grand Prix: Titled Tuesday Blitz"]
[Site "Chess.com"]
[Date "2020.07.07"]
[Round "4"]
[White "PauloFanha"]
[Black "Sharpchess22"]
[Result "0-1"]
[WhiteElo "1992"]
[BlackElo "2689"]
[TimeControl "180+1"]
[EndTime "10:37:54 PDT"]
[Termination "Sharpchess22 won by resignation"]

1. e4 {[%clk 0:03:00.9]} 1... c6 {[%clk 0:02:57.8]} 2. Bc4 {[%clk 0:02:59.9]}
2... d5 {[%clk 0:02:58.7]} 3. Bb3 {[%clk 0:02:59.1]} 3... dxe4 {[%clk
0:02:58.1]} 4. Qh5 {[%clk 0:02:58]} 4... g6 {[%clk 0:02:52.5]} 5. Qh4 {[%clk
0:02:56.5]} 5... Nf6 {[%clk 0:02:52.2]} 6. Nc3 {[%clk 0:02:55]} 6... Nbd7 {[%clk
0:02:47.6]} 7. Nxe4 {[%clk 0:02:52.4]} 7... Nxe4 {[%clk 0:02:46.2]} 8. Qxe4
{[%clk 0:02:52.7]} 8... Nc5 {[%clk 0:02:46.3]} 9. Qe3 {[%clk 0:02:52]} 9... Nxb3
{[%clk 0:02:46.1]} 10. axb3 {[%clk 0:02:51.8]} 10... Bg7 {[%clk 0:02:45.7]} 11.
Rxa7 {[%clk 0:02:49.5]} 11... Rxa7 {[%clk 0:02:44.2]} 12. Qxa7 {[%clk
0:02:47.4]} 12... O-O {[%clk 0:02:39.4]} 13. Qe3 {[%clk 0:02:44.6]} 13... Bf5
{[%clk 0:02:37]} 14. d3 {[%clk 0:02:41.6]} 14... Qa5+ {[%clk 0:02:36.5]} 15. Qd2
{[%clk 0:02:36.4]} 15... Qa1 {[%clk 0:02:35.1]} 16. Nf3 {[%clk 0:02:29.6]} 16...
Bg4 {[%clk 0:02:34.7]} 17. O-O {[%clk 0:02:23.7]} 17... Bxf3 {[%clk 0:02:34.3]}
18. gxf3 {[%clk 0:02:21.9]} 18... e6 {[%clk 0:02:34.2]} 19. c3 {[%clk 0:02:19]}
19... Rd8 {[%clk 0:02:30.9]} 20. Qf4 {[%clk 0:02:13]} 20... Qa5 {[%clk 0:02:26]}
21. d4 {[%clk 0:02:07.2]} 21... e5 {[%clk 0:02:22.8]} 22. dxe5 {[%clk
0:02:02.8]} 22... Bxe5 {[%clk 0:02:22.3]} 23. Qh4 {[%clk 0:02:00]} 23... Re8
{[%clk 0:02:22]} 24. Bg5 {[%clk 0:01:52.2]} 24... Qd5 {[%clk 0:02:20.9]} 25. Bf6
{[%clk 0:01:47.8]} 25... Qxf3 {[%clk 0:02:17.1]} 26. Bxe5 {[%clk 0:01:37.8]}
26... Rxe5 {[%clk 0:02:18]} 27. Qd8+ {[%clk 0:01:34.4]} 27... Kg7 {[%clk
0:02:17.6]} 28. Qd4 {[%clk 0:01:33.5]} 28... f6 {[%clk 0:02:17.6]} 29. Qd7+
{[%clk 0:01:28.6]} 29... Kh6 {[%clk 0:02:17.4]} 30. Rd1 {[%clk 0:01:19.3]} 30...
Rg5+ {[%clk 0:02:09.1]} 31. Kf1 {[%clk 0:01:17.3]} 31... Qg2+ {[%clk 0:02:00.9]}
32. Ke2 {[%clk 0:01:10.6]} 32... Re5+ {[%clk 0:02:00.3]} 33. Kd3 {[%clk
0:01:04.6]} 33... Qxf2 {[%clk 0:01:58.4]} 34. Qh3+ {[%clk 0:01:00.9]} 34... Kg7
{[%clk 0:01:55.5]} 35. Qd7+ {[%clk 0:00:59.7]} 35... Kh6 {[%clk 0:01:55.8]} 36.
Qh3+ {[%clk 0:00:58.7]} 36... Rh5 {[%clk 0:01:56.3]} 37. Qe3+ {[%clk 0:00:57.8]}
37... Qxe3+ {[%clk 0:01:56.3]} 38. Kxe3 {[%clk 0:00:57.3]} 38... Rxh2 {[%clk
0:01:56.9]} 39. Rd7 {[%clk 0:00:55.7]} 39... b5 {[%clk 0:01:56]} 40. Rd6 {[%clk
0:00:55]} 40... Rxb2 {[%clk 0:01:54.9]} 41. Rxf6 {[%clk 0:00:53.3]} 41... Rxb3
{[%clk 0:01:54]} 42. Rxc6 {[%clk 0:00:52.3]} 42... b4 {[%clk 0:01:54.3]} 43. Kd3
{[%clk 0:00:50.3]} 43... Rxc3+ {[%clk 0:01:55.2]} 0-1

[Event "*** SCC Grand Prix: Titled Tuesday Blitz"]
[Site "Chess.com"]
[Date "2020.07.07"]
[Round "4"]
[White "Konavets"]
[Black "JonahWillow"]
[Result "1-0"]
[WhiteElo "2959"]
[BlackElo "2685"]
[TimeControl "180+1"]
[EndTime "10:37:57 PDT"]
[Termination "Konavets won by resignation"]

1. e4 {[%clk 0:03:00.9]} 1... c5 {[%clk 0:02:59.4]} 2. Nf3 {[%clk 0:03:00.8]}
2... Nc6 {[%clk 0:02:59.5]} 3. Bb5 {[%clk 0:02:59.6]} 3... g6 {[%clk 0:03:00]}
4. Bxc6 {[%clk 0:02:59.9]} 4... dxc6 {[%clk 0:03:00.9]} 5. d3 {[%clk 0:02:58.5]}
5... Bg7 {[%clk 0:03:00.4]} 6. Nc3 {[%clk 0:02:59.1]} 6... e5 {[%clk 0:02:47.5]}
7. Be3 {[%clk 0:02:58.8]} 7... b6 {[%clk 0:02:47]} 8. Qd2 {[%clk 0:02:59.1]}
8... h6 {[%clk 0:02:47.2]} 9. O-O {[%clk 0:02:58]} 9... Ne7 {[%clk 0:02:47]} 10.
h3 {[%clk 0:02:55.6]} 10... Be6 {[%clk 0:02:34.4]} 11. Nh2 {[%clk 0:02:54.5]}
11... g5 {[%clk 0:02:33.7]} 12. Ne2 {[%clk 0:02:50.3]} 12... O-O {[%clk
0:02:16.8]} 13. Ng3 {[%clk 0:02:47.9]} 13... Qd7 {[%clk 0:02:12.8]} 14. Nh5
{[%clk 0:02:46.9]} 14... Bh8 {[%clk 0:02:12.9]} 15. f3 {[%clk 0:02:45]} 15...
Ng6 {[%clk 0:02:02.5]} 16. Ng4 {[%clk 0:02:43.9]} 16... Bxg4 {[%clk 0:02:01.9]}
17. fxg4 {[%clk 0:02:42.5]} 17... Nf4 {[%clk 0:02:00]} 18. Ng3 {[%clk
0:02:42.9]} 18... Rad8 {[%clk 0:01:52.8]} 19. Nf5 {[%clk 0:02:42.9]} 19... Kh7
{[%clk 0:01:38.9]} 20. b3 {[%clk 0:02:43.1]} 20... Ne6 {[%clk 0:01:21.9]} 21.
Rf2 {[%clk 0:02:37.1]} 21... Nf4 {[%clk 0:01:14]} 22. Raf1 {[%clk 0:02:36.2]}
22... Qe6 {[%clk 0:01:05]} 23. Rf3 {[%clk 0:02:34.4]} 23... f6 {[%clk
0:00:57.3]} 24. g3 {[%clk 0:02:33.7]} 24... Ng6 {[%clk 0:00:57.4]} 25. h4 {[%clk
0:02:32.9]} 25... Bg7 {[%clk 0:00:49.4]} 26. Qh2 {[%clk 0:02:25.8]} 26... Kg8
{[%clk 0:00:47.6]} 27. hxg5 {[%clk 0:02:21.1]} 27... hxg5 {[%clk 0:00:47.3]} 28.
Nh6+ {[%clk 0:02:11]} 28... Bxh6 {[%clk 0:00:22.8]} 29. Qxh6 {[%clk 0:02:11.9]}
29... Nh8 {[%clk 0:00:23.3]} 30. Rxf6 {[%clk 0:02:11.1]} 30... Rxf6 {[%clk
0:00:22]} 31. Qxf6 {[%clk 0:02:01.1]} 1-0

[Event "*** SCC Grand Prix: Titled Tuesday Blitz"]
[Site "Chess.com"]
[Date "2020.07.07"]
[Round "4"]
[White "gumimis"]
[Black "TamirNabaty"]
[Result "0-1"]
[WhiteElo "2182"]
[BlackElo "2712"]
[TimeControl "180+1"]
[EndTime "10:37:57 PDT"]
[Termination "TamirNabaty won by resignation"]

1. e4 {[%clk 0:03:00.5]} 1... e5 {[%clk 0:02:59.6]} 2. Nf3 {[%clk 0:03:00.3]}
2... Nc6 {[%clk 0:03:00.2]} 3. Bb5 {[%clk 0:03:00.2]} 3... a6 {[%clk 0:03:00.7]}
4. Ba4 {[%clk 0:03:00.5]} 4... Nf6 {[%clk 0:03:01.1]} 5. O-O {[%clk 0:03:00.7]}
5... Bc5 {[%clk 0:03:01.8]} 6. c3 {[%clk 0:02:58.8]} 6... O-O {[%clk 0:03:02.2]}
7. d4 {[%clk 0:02:57.8]} 7... Ba7 {[%clk 0:03:02.7]} 8. Re1 {[%clk 0:02:52.9]}
8... d6 {[%clk 0:03:02.2]} 9. h3 {[%clk 0:02:51.9]} 9... b5 {[%clk 0:03:01.5]}
10. Bb3 {[%clk 0:02:47.9]} 10... Bb7 {[%clk 0:02:46.4]} 11. d5 {[%clk
0:02:40.9]} 11... Ne7 {[%clk 0:02:44.7]} 12. Nbd2 {[%clk 0:02:34.4]} 12... c6
{[%clk 0:02:44]} 13. dxc6 {[%clk 0:02:32.8]} 13... Bxc6 {[%clk 0:02:44.9]} 14.
a4 {[%clk 0:02:16.3]} 14... Ng6 {[%clk 0:02:40.6]} 15. axb5 {[%clk 0:02:14.6]}
15... axb5 {[%clk 0:02:41.5]} 16. Ra6 {[%clk 0:02:06.1]} 16... Bxf2+ {[%clk
0:02:40.6]} 17. Kxf2 {[%clk 0:02:03.5]} 17... Rxa6 {[%clk 0:02:41.5]} 18. Bc2
{[%clk 0:01:58.8]} 18... Qb6+ {[%clk 0:02:40.4]} 19. Kf1 {[%clk 0:01:57.9]}
19... Nh5 {[%clk 0:02:39.8]} 20. Nd4 {[%clk 0:01:37.1]} 20... Ng3+ {[%clk
0:02:18.5]} 21. Kf2 {[%clk 0:01:36.7]} 21... exd4 {[%clk 0:02:01.3]} 22. Kxg3
{[%clk 0:01:36.1]} 22... d5 {[%clk 0:01:48.8]} 23. e5 {[%clk 0:01:23.8]} 23...
dxc3 {[%clk 0:01:44.1]} 24. bxc3 {[%clk 0:01:23.4]} 24... d4 {[%clk 0:01:44.8]}
25. Nf3 {[%clk 0:01:19.8]} 25... dxc3 {[%clk 0:01:26.7]} 26. Be3 {[%clk
0:01:10.8]} 26... Qc7 {[%clk 0:01:25.7]} 27. Bc5 {[%clk 0:01:10.2]} 27... Bxf3
{[%clk 0:01:24.1]} 28. Qxf3 {[%clk 0:01:02.6]} 28... Qxc5 {[%clk 0:01:22.7]} 29.
e6 {[%clk 0:01:00.6]} 29... Rxe6 {[%clk 0:01:21.6]} 30. Rf1 {[%clk 0:00:58.8]}
30... Re3 {[%clk 0:01:20.2]} 0-1

[Event "*** SCC Grand Prix: Titled Tuesday Blitz"]
[Site "Chess.com"]
[Date "2020.07.07"]
[Round "4"]
[White "dennisodessa"]
[Black "YellowJacek"]
[Result "1-0"]
[WhiteElo "2441"]
[BlackElo "2268"]
[TimeControl "180+1"]
[EndTime "10:37:57 PDT"]
[Termination "dennisodessa won by resignation"]

1. d4 {[%clk 0:02:41.4]} 1... d5 {[%clk 0:02:58.7]} 2. c4 {[%clk 0:02:41.3]}
2... c6 {[%clk 0:02:58.4]} 3. Nf3 {[%clk 0:02:41]} 3... Nf6 {[%clk 0:02:58.2]}
4. Nbd2 {[%clk 0:02:41.4]} 4... g6 {[%clk 0:02:56.7]} 5. e3 {[%clk 0:02:40.7]}
5... Bg7 {[%clk 0:02:56.5]} 6. Bd3 {[%clk 0:02:40.9]} 6... O-O {[%clk
0:02:56.4]} 7. b3 {[%clk 0:02:41.1]} 7... Na6 {[%clk 0:02:43]} 8. Bb2 {[%clk
0:02:40.5]} 8... Nc7 {[%clk 0:02:41.1]} 9. O-O {[%clk 0:02:40.6]} 9... a6 {[%clk
0:02:40.6]} 10. Rc1 {[%clk 0:02:39.1]} 10... b5 {[%clk 0:02:32.6]} 11. cxd5
{[%clk 0:02:38.4]} 11... cxd5 {[%clk 0:02:31.4]} 12. Ne5 {[%clk 0:02:38.4]}
12... Bb7 {[%clk 0:02:26.3]} 13. Bc3 {[%clk 0:02:28.9]} 13... Ne6 {[%clk
0:02:21.4]} 14. Bb4 {[%clk 0:02:21.8]} 14... Rc8 {[%clk 0:02:01.2]} 15. Rxc8
{[%clk 0:01:52.4]} 15... Qxc8 {[%clk 0:02:00.5]} 16. Bxe7 {[%clk 0:01:50.9]}
16... Re8 {[%clk 0:01:59.5]} 17. Bb4 {[%clk 0:01:46.4]} 17... Nd7 {[%clk
0:01:53.4]} 18. Nxd7 {[%clk 0:01:44.1]} 18... Qxd7 {[%clk 0:01:52.4]} 19. Qb1
{[%clk 0:01:40.6]} 19... h5 {[%clk 0:01:38]} 20. Rc1 {[%clk 0:01:36.5]} 20... h4
{[%clk 0:01:37.4]} 21. h3 {[%clk 0:01:35.5]} 21... Ng5 {[%clk 0:01:37]} 22. Ba5
{[%clk 0:01:24]} 22... Rc8 {[%clk 0:00:48]} 23. Rxc8+ {[%clk 0:01:20.3]} 23...
Qxc8 {[%clk 0:00:47.6]} 24. Qc2 {[%clk 0:01:20.7]} 24... Qe6 {[%clk 0:00:47]}
25. Qc7 {[%clk 0:01:16.4]} 25... Bc8 {[%clk 0:00:46.6]} 26. Qd8+ {[%clk
0:01:15.9]} 1-0

[Event "*** SCC Grand Prix: Titled Tuesday Blitz"]
[Site "Chess.com"]
[Date "2020.07.07"]
[Round "4"]
[White "Msb2"]
[Black "Witik"]
[Result "1-0"]
[WhiteElo "2861"]
[BlackElo "2654"]
[TimeControl "180+1"]
[EndTime "10:38:03 PDT"]
[Termination "Msb2 won by resignation"]

1. d4 {[%clk 0:03:00.9]} 1... Nf6 {[%clk 0:02:57.5]} 2. c4 {[%clk 0:03:01.1]}
2... g6 {[%clk 0:02:55]} 3. Nc3 {[%clk 0:03:01.7]} 3... Bg7 {[%clk 0:02:55]} 4.
e4 {[%clk 0:03:01.9]} 4... d6 {[%clk 0:02:55.4]} 5. Nf3 {[%clk 0:03:02.8]} 5...
O-O {[%clk 0:02:55.5]} 6. Be2 {[%clk 0:03:03.2]} 6... e5 {[%clk 0:02:56.1]} 7.
Be3 {[%clk 0:03:03.6]} 7... Ng4 {[%clk 0:02:52.9]} 8. Bg5 {[%clk 0:03:03.6]}
8... f6 {[%clk 0:02:53.1]} 9. Bh4 {[%clk 0:03:04.2]} 9... g5 {[%clk 0:02:53.3]}
10. Bg3 {[%clk 0:03:04.3]} 10... Nh6 {[%clk 0:02:54]} 11. dxe5 {[%clk 0:03:05]}
11... fxe5 {[%clk 0:02:51.3]} 12. h4 {[%clk 0:03:04.6]} 12... g4 {[%clk
0:02:43.7]} 13. Ng5 {[%clk 0:03:04.2]} 13... Nc6 {[%clk 0:02:40.1]} 14. c5
{[%clk 0:03:04.3]} 14... Nd4 {[%clk 0:02:34.9]} 15. Bc4+ {[%clk 0:03:03.2]}
15... Kh8 {[%clk 0:02:35.4]} 16. cxd6 {[%clk 0:03:03.7]} 16... Qxd6 {[%clk
0:02:06.6]} 17. O-O {[%clk 0:03:01.7]} 17... c6 {[%clk 0:02:01.7]} 18. Ne2
{[%clk 0:03:00.8]} 18... Qe7 {[%clk 0:01:57.3]} 19. Nxd4 {[%clk 0:02:49.7]}
19... exd4 {[%clk 0:01:57.6]} 20. a4 {[%clk 0:02:50.6]} 20... Bd7 {[%clk
0:01:43.6]} 21. Qd2 {[%clk 0:02:45.2]} 21... Be5 {[%clk 0:01:35.8]} 22. Ne6
{[%clk 0:02:07.3]} 22... Bxg3 {[%clk 0:01:27.6]} 23. Nxf8 {[%clk 0:02:01.1]}
23... Bh2+ {[%clk 0:00:50.9]} 24. Kxh2 {[%clk 0:01:58.8]} 24... Qxh4+ {[%clk
0:00:49.9]} 25. Kg1 {[%clk 0:01:59.1]} 25... Rxf8 {[%clk 0:00:14.4]} 26. Qxd4+
{[%clk 0:01:55.5]} 26... Rf6 {[%clk 0:00:14.4]} 27. Qxd7 {[%clk 0:01:46.7]}
27... g3 {[%clk 0:00:12.6]} 28. fxg3 {[%clk 0:01:45.1]} 1-0

[Event "*** SCC Grand Prix: Titled Tuesday Blitz"]
[Site "Chess.com"]
[Date "2020.07.07"]
[Round "4"]
[White "Caterpiller35"]
[Black "luizwas"]
[Result "1-0"]
[WhiteElo "2366"]
[BlackElo "1818"]
[TimeControl "180+1"]
[EndTime "10:38:05 PDT"]
[Termination "Caterpiller35 won by resignation"]

1. e4 {[%clk 0:03:00]} 1... e6 {[%clk 0:02:59.9]} 2. d3 {[%clk 0:02:59.6]} 2...
d5 {[%clk 0:03:00.2]} 3. Nd2 {[%clk 0:03:00.5]} 3... c5 {[%clk 0:02:58.1]} 4.
Ngf3 {[%clk 0:03:00.1]} 4... Nc6 {[%clk 0:02:57.9]} 5. g3 {[%clk 0:03:00.2]}
5... g6 {[%clk 0:02:56]} 6. Bg2 {[%clk 0:03:00.1]} 6... Bg7 {[%clk 0:02:56.2]}
7. O-O {[%clk 0:03:00.5]} 7... Nge7 {[%clk 0:02:54.8]} 8. Re1 {[%clk 0:02:59.8]}
8... O-O {[%clk 0:02:54.7]} 9. h4 {[%clk 0:02:59.3]} 9... h5 {[%clk 0:02:46.9]}
10. c3 {[%clk 0:02:58.1]} 10... Rb8 {[%clk 0:02:35.9]} 11. e5 {[%clk 0:02:55.5]}
11... Qc7 {[%clk 0:02:33.7]} 12. Qe2 {[%clk 0:02:54.1]} 12... b6 {[%clk
0:02:31.7]} 13. Nf1 {[%clk 0:02:53.2]} 13... Bb7 {[%clk 0:02:30.6]} 14. Bf4
{[%clk 0:02:52.8]} 14... Nf5 {[%clk 0:02:28.8]} 15. Bh3 {[%clk 0:02:48]} 15...
Bh6 {[%clk 0:02:24.7]} 16. Bxf5 {[%clk 0:02:45.9]} 16... Bxf4 {[%clk 0:02:22.5]}
17. gxf4 {[%clk 0:02:35.7]} 17... exf5 {[%clk 0:02:09.3]} 18. Ng3 {[%clk
0:02:35.2]} 18... d4 {[%clk 0:02:05.2]} 19. Ng5 {[%clk 0:02:24.7]} 19... Nd8
{[%clk 0:01:55.6]} 20. Nxf5 {[%clk 0:02:01.9]} 20... gxf5 {[%clk 0:01:50.9]} 21.
Qxh5 {[%clk 0:02:01.7]} 21... f6 {[%clk 0:01:51.4]} 22. exf6 {[%clk 0:01:58.1]}
22... Rxf6 {[%clk 0:01:36.3]} 23. Re8+ {[%clk 0:01:55.5]} 23... Rf8 {[%clk
0:01:36.6]} 24. Rxf8+ {[%clk 0:01:50.5]} 24... Kxf8 {[%clk 0:01:37.5]} 25. Qh8+
{[%clk 0:01:44]} 25... Ke7 {[%clk 0:01:37.3]} 26. Re1+ {[%clk 0:01:36]} 26...
Kd6 {[%clk 0:01:37.2]} 27. Qf6+ {[%clk 0:01:04.2]} 27... Kd7 {[%clk 0:01:04.2]}
28. Re7+ {[%clk 0:01:03.3]} 28... Kc8 {[%clk 0:01:04.6]} 29. Qxf5+ {[%clk
0:01:00.6]} 1-0

[Event "*** SCC Grand Prix: Titled Tuesday Blitz"]
[Site "Chess.com"]
[Date "2020.07.07"]
[Round "4"]
[White "Vaathi_Coming"]
[Black "GoltsevDmitry2000"]
[Result "1/2-1/2"]
[WhiteElo "2885"]
[BlackElo "2570"]
[TimeControl "180+1"]
[EndTime "10:38:17 PDT"]
[Termination "Game drawn by repetition"]

1. e4 {[%clk 0:03:00.9]} 1... c5 {[%clk 0:02:53.8]} 2. Nf3 {[%clk 0:03:01.1]}
2... e6 {[%clk 0:02:54.7]} 3. d4 {[%clk 0:03:00.7]} 3... cxd4 {[%clk 0:02:55.6]}
4. Nxd4 {[%clk 0:03:01.6]} 4... a6 {[%clk 0:02:56.1]} 5. Nc3 {[%clk 0:03:02]}
5... Qc7 {[%clk 0:02:56]} 6. g3 {[%clk 0:03:01.4]} 6... Nf6 {[%clk 0:02:56.3]}
7. Bg2 {[%clk 0:03:01.7]} 7... Bb4 {[%clk 0:02:56.5]} 8. O-O {[%clk 0:02:59.7]}
8... Nc6 {[%clk 0:02:49.3]} 9. Nxc6 {[%clk 0:02:55.6]} 9... bxc6 {[%clk
0:02:50.2]} 10. Re1 {[%clk 0:02:48]} 10... O-O {[%clk 0:02:44.3]} 11. e5 {[%clk
0:02:44.8]} 11... Nd5 {[%clk 0:02:43.3]} 12. Bd2 {[%clk 0:02:41.5]} 12... Nxc3
{[%clk 0:02:42.7]} 13. Bxc3 {[%clk 0:02:35]} 13... Bxc3 {[%clk 0:02:42.7]} 14.
bxc3 {[%clk 0:02:35.9]} 14... a5 {[%clk 0:02:42.3]} 15. Qd4 {[%clk 0:02:14.7]}
15... Ba6 {[%clk 0:02:41]} 16. Red1 {[%clk 0:02:10.6]} 16... Rfd8 {[%clk
0:02:37.5]} 17. Rab1 {[%clk 0:02:09.7]} 17... Rab8 {[%clk 0:02:37.5]} 18. Qc5
{[%clk 0:02:05.6]} 18... Rxb1 {[%clk 0:02:34.7]} 19. Rxb1 {[%clk 0:02:06.5]}
19... Rb8 {[%clk 0:02:32.4]} 20. Rxb8+ {[%clk 0:02:03]} 20... Qxb8 {[%clk
0:02:33.3]} 21. h4 {[%clk 0:02:00.2]} 21... Qc7 {[%clk 0:02:19.9]} 22. Qe7
{[%clk 0:01:57.5]} 22... g6 {[%clk 0:02:16.9]} 23. f4 {[%clk 0:01:40.6]} 23...
Qb6+ {[%clk 0:02:10.4]} 24. Kh2 {[%clk 0:01:36.8]} 24... Qf2 {[%clk 0:02:07.4]}
25. Qxd7 {[%clk 0:01:20]} 25... Bf1 {[%clk 0:02:02.4]} 26. Qxc6 {[%clk
0:01:19.8]} 26... Qxc2 {[%clk 0:02:00.2]} 27. h5 {[%clk 0:00:58.8]} 27... gxh5
{[%clk 0:01:40.6]} 28. Kh3 {[%clk 0:00:57.5]} 28... Qf5+ {[%clk 0:01:39.5]} 29.
Kh2 {[%clk 0:00:57]} 29... Qc2 {[%clk 0:01:38.5]} 30. Kh3 {[%clk 0:00:27.5]}
30... Qf5+ {[%clk 0:01:27.3]} 31. Kh2 {[%clk 0:00:27.3]} 31... Qc2 {[%clk
0:01:27.6]} 1/2-1/2

[Event "*** SCC Grand Prix: Titled Tuesday Blitz"]
[Site "Chess.com"]
[Date "2020.07.07"]
[Round "4"]
[White "Keithonsky"]
[Black "marabu44"]
[Result "1-0"]
[WhiteElo "2426"]
[BlackElo "2242"]
[TimeControl "180+1"]
[EndTime "10:38:18 PDT"]
[Termination "Keithonsky won by resignation"]

1. d4 {[%clk 0:03:00.9]} 1... d6 {[%clk 0:02:59.2]} 2. c4 {[%clk 0:03:00.7]}
2... Nf6 {[%clk 0:02:58.8]} 3. Nc3 {[%clk 0:02:59.8]} 3... e5 {[%clk 0:02:58.6]}
4. d5 {[%clk 0:02:59.8]} 4... Na6 {[%clk 0:02:56.5]} 5. e4 {[%clk 0:03:00.1]}
5... Nc5 {[%clk 0:02:55.9]} 6. Bd3 {[%clk 0:03:00.4]} 6... a5 {[%clk 0:02:54.2]}
7. Bc2 {[%clk 0:03:00.5]} 7... Bd7 {[%clk 0:02:52.3]} 8. Nge2 {[%clk 0:03:00.6]}
8... g6 {[%clk 0:02:49]} 9. O-O {[%clk 0:03:00.5]} 9... Nh5 {[%clk 0:02:48.3]}
10. a3 {[%clk 0:03:01.4]} 10... Be7 {[%clk 0:02:43.5]} 11. Rb1 {[%clk 0:03:00]}
11... Bg5 {[%clk 0:02:42.1]} 12. b4 {[%clk 0:02:59.3]} 12... Bxc1 {[%clk
0:02:36.5]} 13. Qxc1 {[%clk 0:02:59.5]} 13... axb4 {[%clk 0:02:34.3]} 14. axb4
{[%clk 0:03:00.4]} 14... Na6 {[%clk 0:02:33.3]} 15. f3 {[%clk 0:03:00.5]} 15...
Nb8 {[%clk 0:02:21.1]} 16. Qe3 {[%clk 0:03:00.7]} 16... O-O {[%clk 0:02:18.2]}
17. c5 {[%clk 0:03:01.2]} 17... Qf6 {[%clk 0:02:10.8]} 18. Ra1 {[%clk
0:02:57.1]} 18... Na6 {[%clk 0:02:05.9]} 19. Rab1 {[%clk 0:02:53.1]} 19... Nf4
{[%clk 0:02:02.2]} 20. c6 {[%clk 0:02:43.7]} 20... bxc6 {[%clk 0:01:59.1]} 21.
dxc6 {[%clk 0:02:44.6]} 21... Be6 {[%clk 0:01:57.5]} 22. Rfd1 {[%clk 0:02:36.9]}
22... Rfb8 {[%clk 0:01:53.3]} 23. b5 {[%clk 0:02:33.8]} 23... Nc5 {[%clk
0:01:52.7]} 24. Nxf4 {[%clk 0:02:34]} 24... exf4 {[%clk 0:01:48.1]} 25. Qd4
{[%clk 0:02:28]} 25... Qxd4+ {[%clk 0:01:45.6]} 26. Rxd4 {[%clk 0:02:28.9]}
26... Rb6 {[%clk 0:01:42]} 27. Rdb4 {[%clk 0:02:20.6]} 27... g5 {[%clk 0:01:37]}
28. Ne2 {[%clk 0:02:18.6]} 28... Ra2 {[%clk 0:01:32.5]} 29. R4b2 {[%clk
0:02:15.7]} 29... Rxb2 {[%clk 0:01:21.3]} 30. Rxb2 {[%clk 0:02:16.6]} 30... Bc4
{[%clk 0:01:21.2]} 31. Nc3 {[%clk 0:02:07.5]} 31... Kg7 {[%clk 0:01:18.5]} 32.
Rb4 {[%clk 0:02:04.2]} 32... Be6 {[%clk 0:01:14.5]} 33. Bd1 {[%clk 0:01:56.8]}
33... Kf6 {[%clk 0:01:13]} 34. Be2 {[%clk 0:01:57.1]} 34... Ke5 {[%clk
0:01:12.5]} 35. Kf2 {[%clk 0:01:56.9]} 35... f5 {[%clk 0:01:04.2]} 36. exf5
{[%clk 0:01:45.3]} 36... Bxf5 {[%clk 0:01:04]} 37. Na4 {[%clk 0:01:45.4]} 37...
Nxa4 {[%clk 0:01:03.2]} 38. Rxa4 {[%clk 0:01:46.3]} 38... Kd5 {[%clk 0:00:59.3]}
39. Ra7 {[%clk 0:01:43.3]} 39... Kd4 {[%clk 0:00:57.7]} 40. Rxc7 {[%clk
0:01:43.3]} 40... Bd3 {[%clk 0:00:58.4]} 41. Rb7 {[%clk 0:01:43.5]} 1-0

[Event "*** SCC Grand Prix: Titled Tuesday Blitz"]
[Site "Chess.com"]
[Date "2020.07.07"]
[Round "4"]
[White "jacky72"]
[Black "KNCP_719"]
[Result "1-0"]
[WhiteElo "2643"]
[BlackElo "2473"]
[TimeControl "180+1"]
[EndTime "10:38:19 PDT"]
[Termination "jacky72 won by resignation"]

1. d4 {[%clk 0:03:00.9]} 1... Nf6 {[%clk 0:02:58.8]} 2. c4 {[%clk 0:02:49.1]}
2... b6 {[%clk 0:02:58.8]} 3. b3 {[%clk 0:02:44.9]} 3... Bb7 {[%clk 0:02:58.9]}
4. Bb2 {[%clk 0:02:45.4]} 4... g6 {[%clk 0:02:56.7]} 5. Nd2 {[%clk 0:02:45.8]}
5... Bg7 {[%clk 0:02:56.9]} 6. f3 {[%clk 0:02:46.4]} 6... d5 {[%clk 0:02:39.1]}
7. e3 {[%clk 0:02:46.4]} 7... O-O {[%clk 0:02:38.3]} 8. Bd3 {[%clk 0:02:46.5]}
8... c5 {[%clk 0:02:38]} 9. Ne2 {[%clk 0:02:46.4]} 9... Nc6 {[%clk 0:02:35.7]}
10. dxc5 {[%clk 0:02:46.5]} 10... bxc5 {[%clk 0:02:36.6]} 11. O-O {[%clk
0:02:46.4]} 11... d4 {[%clk 0:02:12]} 12. exd4 {[%clk 0:02:45.4]} 12... cxd4
{[%clk 0:02:05.3]} 13. Ne4 {[%clk 0:02:45.2]} 13... e5 {[%clk 0:02:04.8]} 14.
Nc5 {[%clk 0:02:43.8]} 14... Bc8 {[%clk 0:02:03.7]} 15. Ng3 {[%clk 0:02:43.7]}
15... Qb6 {[%clk 0:01:57.8]} 16. Na4 {[%clk 0:02:42.3]} 16... Qc7 {[%clk
0:01:56.8]} 17. Re1 {[%clk 0:02:42.6]} 17... Re8 {[%clk 0:01:49.3]} 18. Ne4
{[%clk 0:02:42]} 18... Bf5 {[%clk 0:01:47.6]} 19. Nac5 {[%clk 0:02:38.2]} 19...
a5 {[%clk 0:01:41.2]} 20. Nxf6+ {[%clk 0:02:37.2]} 20... Bxf6 {[%clk 0:01:39.8]}
21. Ne4 {[%clk 0:02:38.1]} 21... Bg7 {[%clk 0:01:38.1]} 22. Qd2 {[%clk 0:02:38]}
22... Rab8 {[%clk 0:01:29.9]} 23. Rac1 {[%clk 0:02:38.3]} 23... a4 {[%clk
0:01:18.8]} 24. bxa4 {[%clk 0:02:32.4]} 24... Qa7 {[%clk 0:01:18.2]} 25. Nd6
{[%clk 0:02:30.8]} 25... Bxd3 {[%clk 0:00:36.1]} 26. Nxe8 {[%clk 0:02:30.1]}
26... Bf5 {[%clk 0:00:34.7]} 27. Nxg7 {[%clk 0:02:29.8]} 27... Kxg7 {[%clk
0:00:33.9]} 28. Kh1 {[%clk 0:02:26.1]} 28... Qxa4 {[%clk 0:00:32.8]} 29. Ba1
{[%clk 0:02:15.8]} 29... Ra8 {[%clk 0:00:28.9]} 30. Re2 {[%clk 0:02:15.1]} 30...
Nb4 {[%clk 0:00:27.1]} 31. Rxe5 {[%clk 0:02:12.6]} 31... Nd3 {[%clk 0:00:17]}
32. Bxd4 {[%clk 0:02:12.8]} 32... Nxe5 {[%clk 0:00:11.6]} 33. Bxe5+ {[%clk
0:02:13.7]} 33... f6 {[%clk 0:00:12.5]} 34. Bc3 {[%clk 0:02:11.9]} 34... Qxa2
{[%clk 0:00:12.6]} 35. Qd6 {[%clk 0:02:12.4]} 35... Ra6 {[%clk 0:00:07.7]} 36.
Bxf6+ {[%clk 0:02:10.4]} 36... Kg8 {[%clk 0:00:02]} 37. Qd8+ {[%clk 0:02:10.3]}
1-0